[Event "17th Spilimbergo Open 2019"]
[Site "Spilimbergo"]
[Date "2019.08.10"]
[Round "3.11"]
[White "Saric, Ivan"]
[Black "Collutiis, Duilio"]
[Result "1-0"]
[WhiteElo "2660"]
[BlackElo "2402"]
[PlyCount "73"]
[EventDate "2019.08.09"]
[EventType "swiss"]
[EventCountry "ITA"]
[TimeControl "5400+30"]
[WhiteClock "0:05:35"]
[BlackClock "0:43:00"]

1. e4 {[%emt 0:00:30]} e5 {[%emt 0:00:30]} 2. Nf3 {[%emt 0:00:00]} Nc6 {[%emt 0:00:30]} 3. Bb5 {[%emt 0:00:00]} a6 {[%emt 0:00:30]} 4. Ba4 {[%emt 0:00:30]} d6 {[%emt 0:00:00]} 5. O-O {[%emt 0:00:00]} Bd7 {[%emt 0:01:00]} 6. d4 {[%emt 0:00:00]} Nf6 {[%emt 0:06:30]} 7. d5 {[%emt 0:01:30]} Ne7 {[%emt 0:00:30]} 8. Bxd7+ {[%emt 0:00:30]} Qxd7 {[%emt 0:00:30]} 9. Re1 {[%emt 0:00:30]} g6 {[%emt 0:00:30]} 10. c4 {[%emt 0:00:30]} Bg7 {[%emt 0:00:30]} 11. Nc3 {[%emt 0:00:30]} O-O {[%emt 0:00:30]} 12. a4 {[%emt 0:02:30]} Ne8 {[%emt 0:00:00]} 13. a5 {[%emt 0:06:30]} h6 {[%emt 0:00:00]} 14. Qb3 {[%emt 0:06:30]} Rb8 {[%emt 0:29:30]} 15. c5 {[%emt 0:03:30]} Kh7 {[%emt 0:03:30]} 16. Be3 {[%emt 0:00:30]} dxc5 {[%emt 0:08:30]} 17. Na4 {[%emt 0:04:30]} Nd6 {[%emt 0:00:30]} 18. Nxc5 {[%emt 0:00:30]} Qd8 {[%emt 0:00:00]} 19. Qa4 {[%emt 0:00:30]} Nb5 {[%emt 0:01:00]} 20. Nd3 {[%emt 0:06:30]} f5 {[%emt 0:21:30]} 21. Nfxe5 {[%emt 0:01:30]} fxe4 {[%emt 0:02:30]} 22. Qxe4 {[%emt 0:00:00]} Nd6 {[%emt 0:01:30]} 23. Qg4 {[%emt 0:04:00]} h5 {[%emt 0:05:00]} 24. Qe6 {[%emt 0:06:30]} Rf6 {[%emt 0:00:28]} 25. Qh3 {[%emt 0:02:30]} Rf5 {[%emt 0:00:56]} 26. g4 {[%emt 0:07:30]} Rxe5 {[%emt 0:00:30]} 27. Nxe5 {[%emt 0:00:30]} Bxe5 {[%emt 0:00:13]} 28. gxh5 {[%emt 0:00:30]} Bf6 {[%emt 0:08:01]} 29. hxg6+ {[%emt 0:01:30]} Kxg6 {[%emt 0:00:06]} 30. Kh1 {[%emt 0:01:30]} Nef5 {[%emt 0:03:17]} 31. Rg1+ {[%emt 0:01:30]} Kf7 {[%emt 0:00:10]} 32. Qh5+ {[%emt 0:00:30]} Kf8 {[%emt 0:01:26]} 33. Bh6+ {[%emt 0:00:30]} Ng7 {[%emt 0:01:06]} 34. Bxg7+ {[%emt 0:00:30]} Bxg7 {[%emt 0:00:07]} 35. Rxg7 {[%emt 0:00:00]} Kxg7 {[%emt 0:00:26]} 36. Rg1+ {[%emt 0:00:00]} Kf6 {[%emt 0:00:39]} 37. Qg5+ 1-0

[Event "17th Spilimbergo Open 2019"]
[Site "Spilimbergo"]
[Date "2019.08.10"]
[Round "3.12"]
[White "Basso, Pier Luigi"]
[Black "Solomon, Kenny"]
[Result "1-0"]
[WhiteElo "2576"]
[BlackElo "2373"]
[PlyCount "183"]
[EventDate "2019.08.09"]
[EventType "swiss"]
[EventCountry "ITA"]
[TimeControl "5400+30"]
[BlackClock "0:01:12"]

1. d4 {[%emt 0:08:30]} Nf6 {[%emt 0:00:30]} 2. c4 {[%emt 0:00:00]} e6 {[%emt 0:00:30]} 3. Nf3 {[%emt 0:00:00]} b6 {[%emt 0:00:30]} 4. g3 {[%emt 0:00:30]} Ba6 {[%emt 0:00:30]} 5. b3 {[%emt 0:00:30]} Bb4+ {[%emt 0:00:30]} 6. Bd2 {[%emt 0:00:30]} Be7 {[%emt 0:00:30]} 7. Nc3 {[%emt 0:00:00]} O-O {[%emt 0:00:30]} 8. Bg2 {[%emt 0:00:00]} c6 {[%emt 0:06:30]} 9. e4 {[%emt 0:00:30]} d5 {[%emt 0:00:00]} 10. exd5 {[%emt 0:00:30]} cxd5 {[%emt 0:00:00]} 11. Ne5 {[%emt 0:02:30]} Bb7 {[%emt 0:00:30]} 12. O-O {[%emt 0:02:30]} Nc6 {[%emt 0:17:30]} 13. Bf4 {[%emt 0:00:30]} Bb4 {[%emt 0:11:30]} 14. Rc1 {[%emt 0:01:30]} Rc8 {[%emt 0:17:30]} 15. Nb5 {[%emt 0:06:30]} Qe7 {[%emt 0:00:30]} 16. a3 {[%emt 0:29:30]} a6 {[%emt 0:12:30]} 17. Nxc6 {[%emt 0:02:30]} Bxc6 {[%emt 0:01:30]} 18. axb4 {[%emt 0:01:30]} axb5 {[%emt 0:00:30]} 19. c5 {[%emt 0:00:00]} bxc5 {[%emt 0:06:30]} 20. bxc5 {[%emt 0:00:00]} Qb7 {[%emt 0:02:33]} 21. Be5 {[%emt 0:00:30]} Nd7 {[%emt 0:00:34]} 22. Bd6 {[%emt 0:00:30]} Rfe8 {[%emt 0:00:02]} 23. Qd2 {[%emt 0:03:30]} Ra8 {[%emt 0:01:12]} 24. Ra1 {[%emt 0:01:30]} Nf6 {[%emt 0:11:08]} 25. f3 {[%emt 0:02:30]} Rxa1 {[%emt 0:00:14]} 26. Rxa1 {[%emt 0:00:00]} Ra8 {[%emt 0:00:07]} 27. Ra5 {[%emt 0:03:00]} Ne8 {[%emt 0:00:11]} 28. Bf4 {[%emt 0:00:30]} Rxa5 {[%emt 0:01:02]} 29. Qxa5 {[%emt 0:00:30]} Qd7 {[%emt 0:00:03]} 30. Bf1 {[%emt 0:00:30]} f6 {[%emt 0:00:21]} 31. Qb6 {[%emt 0:01:30]} Kf7 {[%emt 0:01:25]} 32. Bb8 {[%emt 0:00:30]} g5 {[%emt 0:02:55]} 33. f4 {[%emt 0:04:30]} gxf4 {[%emt 0:00:26]} 34. Bxf4 {[%emt 0:00:00]} Ng7 {[%emt 0:00:51]} 35. Bd3 {[%emt 0:00:00]} Nf5 {[%emt 0:00:15]} 36. Qb8 {[%emt 0:02:30]} Qe8 {[%emt 0:01:17]} 37. Qa7+ {[%emt 0:00:30]} Qd7 {[%emt 0:00:19]} 38. Qa1 {[%emt 0:00:00]} Kg8 {[%emt 0:01:45]} 39. Kf2 {[%emt 0:02:00]} Ne7 {[%emt 0:00:39]} 40. Ke3 {[%emt 0:04:30]} Ng6 {[%emt 0:00:40]} 41. Kd2 {[%emt 0:00:30]} Qb7 {[%emt 0:01:42]} 42. Qa5 {[%emt 0:00:30]} Nxf4 {[%emt 0:01:42]} 43. gxf4 {[%emt 0:01:30]} b4 {[%emt 0:00:57]} 44. Qd8+ {[%emt 0:01:30]} Kg7 {[%emt 0:00:10]} 45. h4 {[%emt 0:01:30]} Qa7 {[%emt 0:00:42]} 46. h5 {[%emt 0:00:58]} Qf7 {[%emt 0:00:22]} 47. Be2 {[%emt 0:00:34]} Kh6 {[%emt 0:00:44]} 48. Qa5 {[%emt 0:02:28]} Qb7 {[%emt 0:00:11]} 49. Ke3 {[%emt 0:02:13]} Kg7 {[%emt 0:00:02]} 50. Qd8 {[%emt 0:00:18]} h6 {[%emt 0:00:11]} 51. Qa5 {[%emt 0:00:03]} Qb8 {[%emt 0:00:18]} 52. Qa1 {[%emt 0:00:19]} Kh8 {[%emt 0:01:07]} 53. Qe1 {[%emt 0:01:28]} Bd7 {[%emt 0:00:50]} 54. Bd3 {[%emt 0:01:47]} Be8 {[%emt 0:01:00]} 55. Qh4 {[%emt 0:00:09]} Qd8 {[%emt 0:00:24]} 56. Kd2 {[%emt 0:01:37]} Qe7 {[%emt 0:00:06]} 57. Kc1 {[%emt 0:00:58]} Qd8 {[%emt 0:00:47]} 58. Kb2 {[%emt 0:01:21]} Qe7 {[%emt 0:00:22]} 59. Qe1 {[%emt 0:00:14]} e5 {[%emt 0:00:50]} 60. fxe5 {[%emt 0:00:18]} fxe5 {[%emt 0:00:29]} 61. Qxe5+ {[%emt 0:06:01]} Qxe5 {[%emt 0:00:11]} 62. dxe5 {[%emt 0:00:37]} Kg8 {[%emt 0:00:30]} 63. Kc2 {[%emt 0:00:35]} Kf8 {[%emt 0:00:30]} 64. Bf5 {[%emt 0:00:09]} Bb5 {[%emt 0:00:12]} 65. Kd2 {[%emt 0:00:23]} d4 {[%emt 0:00:28]} 66. Be4 {[%emt 0:03:13]} Ke7 {[%emt 0:01:20]} 67. Bb7 {[%emt 0:00:01]} Be8 {[%emt 0:00:00]} 68. Kd3 {[%emt 0:01:21]} Bf7 {[%emt 0:00:27]} 69. Kxd4 {[%emt 0:00:48]} Bxb3 {[%emt 0:00:09]} 70. Bf3 {[%emt 0:01:23]} Bf7 {[%emt 0:01:14]} 71. c6 {[%emt 0:00:06]} Kd8 {[%emt 0:00:31]} 72. Kc5 {[%emt 0:00:10]} Kc7 {[%emt 0:00:29]} 73. Kxb4 {[%emt 0:00:07]} Kb6 {[%emt 0:00:31]} 74. Kc3 {[%emt 0:00:31]} Be8 {[%emt 0:00:22]} 75. Kd4 {[%emt 0:00:12]} Bf7 {[%emt 0:00:36]} 76. Ke3 {[%emt 0:01:40]} Be6 {[%emt 0:00:32]} 77. Kf4 {[%emt 0:00:51]} Kc7 {[%emt 0:00:05]} 78. Ke3 {[%emt 0:00:45]} Bf7 {[%emt 0:00:20]} 79. Kd4 {[%emt 0:00:22]} Kb6 {[%emt 0:00:09]} 80. Kd3 {[%emt 0:00:17]} Kc7 {[%emt 0:00:36]} 81. Ke3 {[%emt 0:00:01]} Bb3 {[%emt 0:00:57]} 82. Kf4 {[%emt 0:01:49]} Be6 {[%emt 0:00:28]} 83. Bg4 {[%emt 0:01:08]} Bb3 {[%emt 0:00:55]} 84. Kf5 {[%emt 0:01:31]} Bc2+ {[%emt 0:00:29]} 85. Kf6 {[%emt 0:00:09]} Kxc6 {[%emt 0:00:01]} 86. e6 {[%emt 0:00:07]} Kd6 {[%emt 0:00:21]} 87. e7 {[%emt 0:00:26]} Ba4 {[%emt 0:00:02]} 88. Bf5 {[%emt 0:00:54]} Bb5 {[%emt 0:01:33]} 89. Bg6 {[%emt 0:00:07]} Ba4 {[%emt 0:00:25]} 90. e8=Q {[%emt 0:00:29]} Bxe8 {[%emt 0:00:12]} 91. Bxe8 {[%emt 0:00:02]} Kd5 {[%emt 0:00:06]} 92. Kg6 {[%emt 0:00:34]} 1-0

[Event "17th Spilimbergo Open 2019"]
[Site "Spilimbergo"]
[Date "2019.08.11"]
[Round "4.1"]
[White "Nikolovski, Nikola"]
[Black "Kovalev, Vladislav"]
[Result "0-1"]
[WhiteElo "2409"]
[BlackElo "2651"]
[PlyCount "102"]
[EventDate "2019.08.09"]
[EventType "swiss"]
[EventCountry "ITA"]
[TimeControl "5400+30"]
[WhiteClock "0:09:00"]
[BlackClock "0:00:36"]

1. e4 {[%emt 0:00:30]} e5 {[%emt 0:00:30]} 2. Nf3 {[%emt 0:00:30]} Nc6 {[%emt 0:00:00]} 3. Bc4 {[%emt 0:00:30]} Nf6 {[%emt 0:00:00]} 4. d3 {[%emt 0:00:30]} Bc5 {[%emt 0:00:00]} 5. O-O {[%emt 0:00:30]} d6 {[%emt 0:00:00]} 6. c3 {[%emt 0:00:30]} O-O {[%emt 0:02:30]} 7. h3 {[%emt 0:09:30]} a5 {[%emt 0:09:30]} 8. Re1 {[%emt 0:04:30]} h6 {[%emt 0:01:30]} 9. Nbd2 {[%emt 0:00:30]} Be6 {[%emt 0:00:30]} 10. Bb5 {[%emt 0:01:30]} Qb8 {[%emt 0:00:30]} 11. Bxc6 {[%emt 0:00:30]} bxc6 {[%emt 0:00:00]} 12. d4 {[%emt 0:00:30]} exd4 {[%emt 0:00:00]} 13. cxd4 {[%emt 0:00:30]} Bb6 {[%emt 0:05:30]} 14. Nf1 {[%emt 0:01:30]} d5 {[%emt 0:02:30]} 15. e5 {[%emt 0:07:30]} Ne4 {[%emt 0:00:30]} 16. Be3 {[%emt 0:18:30]} c5 {[%emt 0:08:30]} 17. Qc1 {[%emt 0:10:30]} cxd4 {[%emt 0:09:30]} 18. Nxd4 {[%emt 0:09:30]} Re8 {[%emt 0:06:30]} 19. f3 {[%emt 0:03:30]} Nc5 {[%emt 0:04:30]} 20. Qc3 {[%emt 0:05:30]} Bd7 {[%emt 0:05:30]} 21. Nc6 {[%emt 0:03:30]} Qb7 {[%emt 0:02:30]} 22. Bxc5 {[%emt 0:00:30]} Qxc6 {[%emt 0:00:30]} 23. Rac1 {[%emt 0:00:30]} Qxc5+ {[%emt 0:05:30]} 24. Qxc5 {[%emt 0:00:00]} Bxc5+ {[%emt 0:00:30]} 25. Rxc5 {[%emt 0:00:00]} c6 {[%emt 0:00:00]} 26. Re2 {[%emt 0:03:34]} a4 {[%emt 0:04:00]} 27. g4 {[%emt 0:09:07]} Reb8 {[%emt 0:01:30]} 28. f4 {[%emt 0:03:28]} h5 {[%emt 0:04:30]} 29. f5 {[%emt 0:01:33]} hxg4 {[%emt 0:00:30]} 30. hxg4 {[%emt 0:01:55]} Rb4 {[%emt 0:00:30]} 31. Nh2 {[%emt 0:00:06]} Rab8 {[%emt 0:06:30]} 32. Rcc2 {[%emt 0:00:06]} Kf8 {[%emt 0:02:34]} 33. Kf2 {[%emt 0:00:23]} Ke7 {[%emt 0:01:49]} 34. Kg3 {[%emt 0:01:20]} g6 {[%emt 0:01:16]} 35. f6+ {[%emt 0:03:52]} Kd8 {[%emt 0:03:44]} 36. Rg2 {[%emt 0:00:09]} Kc7 {[%emt 0:00:43]} 37. Kf3 {[%emt 0:00:05]} Be6 {[%emt 0:01:44]} 38. Rgd2 {[%emt 0:01:19]} R8b5 {[%emt 0:00:40]} 39. a3 {[%emt 0:00:31]} Re4 {[%emt 0:00:45]} 40. Re2 {[%emt 0:00:06]} Rb3+ {[%emt 0:00:10]} 41. Kg2 {[%emt 0:00:41]} Rxe2+ {[%emt 0:00:35]} 42. Rxe2 {[%emt 0:00:05]} c5 {[%emt 0:00:09]} 43. Rd2 {[%emt 0:00:50]} d4 {[%emt 0:00:20]} 44. Kf2 {[%emt 0:00:21]} Bd5 {[%emt 0:01:51]} 45. Nf1 {[%emt 0:00:09]} Rf3+ {[%emt 0:00:59]} 46. Ke1 {[%emt 0:00:56]} Kc6 {[%emt 0:02:25]} 47. Rf2 {[%emt 0:00:42]} Rxf2 {[%emt 0:01:36]} 48. Kxf2 {[%emt 0:00:06]} Kd7 {[%emt 0:00:02]} 49. Kg3 {[%emt 0:00:54]} g5 {[%emt 0:00:04]} 50. Kf2 {[%emt 0:00:40]} Ke6 {[%emt 0:00:04]} 51. Nd2 {[%emt 0:00:26]} Kxe5 0-1

[Event "17th Spilimbergo Open 2019"]
[Site "Spilimbergo"]
[Date "2019.08.11"]
[Round "4.2"]
[White "Bosiocic, Marin"]
[Black "Dragnev, Valentin"]
[Result "1-0"]
[WhiteElo "2611"]
[BlackElo "2535"]
[PlyCount "71"]
[EventDate "2019.08.09"]
[EventType "swiss"]
[EventCountry "ITA"]
[TimeControl "5400+30"]
[WhiteClock "0:00:42"]
[BlackClock "0:55:00"]

1. d4 {[%emt 0:00:30]} Nf6 {[%emt 0:00:30]} 2. c4 {[%emt 0:00:00]} e6 {[%emt 0:00:00]} 3. Nf3 {[%emt 0:00:00]} d5 {[%emt 0:00:00]} 4. g3 {[%emt 0:00:00]} Bb4+ {[%emt 0:00:00]} 5. Nbd2 {[%emt 0:00:00]} dxc4 {[%emt 0:00:00]} 6. Bg2 {[%emt 0:00:00]} b5 {[%emt 0:00:30]} 7. O-O {[%emt 0:00:00]} a5 {[%emt 0:00:00]} 8. a3 {[%emt 0:00:30]} Be7 {[%emt 0:00:00]} 9. b3 {[%emt 0:00:00]} cxb3 {[%emt 0:00:30]} 10. Qxb3 {[%emt 0:00:00]} c6 {[%emt 0:00:30]} 11. Ne5 {[%emt 0:00:30]} Bb7 {[%emt 0:02:30]} 12. Bb2 {[%emt 0:00:00]} O-O {[%emt 0:00:30]} 13. Rfc1 {[%emt 0:00:00]} Nfd7 {[%emt 0:09:30]} 14. Nd3 {[%emt 0:01:30]} Qb6 {[%emt 0:11:30]} 15. Ne4 {[%emt 0:05:30]} Na6 {[%emt 0:01:30]} 16. Qc3 {[%emt 0:05:30]} b4 {[%emt 0:24:30]} 17. axb4 {[%emt 0:00:30]} axb4 {[%emt 0:00:30]} 18. Qc4 {[%emt 0:00:00]} Rfb8 {[%emt 0:07:30]} 19. Bh3 {[%emt 0:07:00]} Qd8 {[%emt 0:02:30]} 20. Ndc5 {[%emt 0:03:30]} Ndxc5 {[%emt 0:04:30]} 21. dxc5 {[%emt 0:00:30]} Qd5 {[%emt 0:00:30]} 22. Qc2 {[%emt 0:01:30]} f5 {[%emt 0:02:30]} 23. Nd2 {[%emt 0:14:30]} Nxc5 {[%emt 0:03:30]} 24. Bg2 {[%emt 0:00:30]} Qd8 {[%emt 0:00:30]} 25. Rd1 {[%emt 0:00:30]} Rxa1 {[%emt 0:01:30]} 26. Bxa1 {[%emt 0:00:00]} Qf8 {[%emt 0:00:30]} 27. Nb3 {[%emt 0:01:00]} Nxb3 {[%emt 0:07:30]} 28. Qxb3 {[%emt 0:01:30]} Qf7 {[%emt 0:01:37]} 29. Rd7 {[%emt 0:00:30]} Bc8 {[%emt 0:00:34]} 30. Rc7 {[%emt 0:04:30]} e5 {[%emt 0:03:16]} 31. Qa4 {[%emt 0:00:00]} b3 {[%emt 0:13:58]} 32. Bxc6 {[%emt 0:01:00]} b2 {[%emt 0:01:05]} 33. Bxb2 {[%emt 0:00:30]} Rxb2 {[%emt 0:00:06]} 34. Rxc8+ {[%emt 0:00:30]} Bf8 {[%emt 0:00:01]} 35. Rd8 {[%emt 0:00:30]} Ra2 {[%emt 0:02:41]} 36. Rxf8+ 1-0

[Event "17th Spilimbergo Open 2019"]
[Site "Spilimbergo"]
[Date "2019.08.11"]
[Round "4.3"]
[White "Nisipeanu, Liviu-Dieter"]
[Black "Sonis, Francesco"]
[Result "1/2-1/2"]
[WhiteElo "2666"]
[BlackElo "2459"]
[PlyCount "59"]
[EventDate "2019.08.09"]
[EventType "swiss"]
[EventCountry "ITA"]
[TimeControl "5400+30"]
[WhiteClock "0:30:00"]
[BlackClock "0:15:03"]

1. e4 {[%emt 0:00:30]} e5 {[%emt 0:00:30]} 2. Nf3 {[%emt 0:00:00]} Nc6 {[%emt 0:00:00]} 3. Bb5 {[%emt 0:00:00]} a6 {[%emt 0:00:00]} 4. Ba4 {[%emt 0:00:00]} Nf6 {[%emt 0:00:30]} 5. O-O {[%emt 0:00:00]} b5 {[%emt 0:00:30]} 6. Bb3 {[%emt 0:00:00]} Bb7 {[%emt 0:00:00]} 7. d3 {[%emt 0:01:00]} Bc5 {[%emt 0:00:00]} 8. Nc3 {[%emt 0:01:30]} O-O {[%emt 0:00:30]} 9. a3 {[%emt 0:00:00]} h6 {[%emt 0:02:30]} 10. Nd5 {[%emt 0:01:00]} d6 {[%emt 0:00:30]} 11. Kh1 {[%emt 0:02:30]} Nd7 {[%emt 0:07:30]} 12. c3 {[%emt 0:04:30]} Ne7 {[%emt 0:03:30]} 13. Ne3 {[%emt 0:16:30]} Bxe3 {[%emt 0:13:30]} 14. Bxe3 {[%emt 0:00:00]} d5 {[%emt 0:01:30]} 15. Nd2 {[%emt 0:18:00]} c5 {[%emt 0:05:30]} 16. f4 {[%emt 0:06:30]} c4 {[%emt 0:03:30]} 17. dxc4 {[%emt 0:01:30]} dxc4 {[%emt 0:01:30]} 18. Bc2 {[%emt 0:00:00]} exf4 {[%emt 0:00:00]} 19. Rxf4 {[%emt 0:02:00]} Ng6 {[%emt 0:02:00]} 20. Rf5 {[%emt 0:01:30]} Nde5 {[%emt 0:06:30]} 21. Qh5 {[%emt 0:06:30]} f6 {[%emt 0:04:30]} 22. h3 {[%emt 0:11:30]} Qe8 {[%emt 0:01:30]} 23. Bd4 {[%emt 0:00:30]} Rd8 {[%emt 0:06:30]} 24. b3 {[%emt 0:04:30]} Bc8 {[%emt 0:04:30]} 25. Rf2 {[%emt 0:01:30]} Be6 {[%emt 0:00:30]} 26. bxc4 {[%emt 0:00:30]} bxc4 {[%emt 0:01:30]} 27. Rb1 {[%emt 0:07:05]} Rb8 {[%emt 0:03:30]} 28. Rff1 {[%emt 0:00:07]} Qe7 {[%emt 0:01:30]} 29. a4 {[%emt 0:00:15]} Bf7 {[%emt 0:00:30]} 30. Qe2 1/2-1/2

[Event "17th Spilimbergo Open 2019"]
[Site "Spilimbergo"]
[Date "2019.08.11"]
[Round "4.4"]
[White "Yankelevich, Lev"]
[Black "Saric, Ivan"]
[Result "0-1"]
[WhiteElo "2480"]
[BlackElo "2660"]
[PlyCount "96"]
[EventDate "2019.08.09"]
[EventType "swiss"]
[EventCountry "ITA"]
[TimeControl "5400+30"]
[WhiteClock "0:36:00"]
[BlackClock "0:02:32"]

1. d4 {[%emt 0:00:30]} Nf6 {[%emt 0:00:30]} 2. c4 {[%emt 0:00:00]} g6 {[%emt 0:00:00]} 3. Nc3 {[%emt 0:00:00]} Bg7 {[%emt 0:00:00]} 4. e4 {[%emt 0:00:00]} d6 {[%emt 0:00:00]} 5. h3 {[%emt 0:00:00]} e5 {[%emt 0:00:00]} 6. d5 {[%emt 0:01:30]} a5 {[%emt 0:00:30]} 7. Be3 {[%emt 0:00:30]} Na6 {[%emt 0:00:30]} 8. Nf3 {[%emt 0:00:30]} O-O {[%emt 0:03:30]} 9. g4 {[%emt 0:00:30]} Nd7 {[%emt 0:01:30]} 10. Rg1 {[%emt 0:06:30]} Ndc5 {[%emt 0:00:30]} 11. h4 {[%emt 0:04:30]} Kh8 {[%emt 0:02:30]} 12. Qd2 {[%emt 0:04:30]} Bd7 {[%emt 0:01:30]} 13. h5 {[%emt 0:10:30]} gxh5 {[%emt 0:00:30]} 14. g5 {[%emt 0:18:30]} f5 {[%emt 0:01:30]} 15. gxf6 {[%emt 0:00:30]} Qxf6 {[%emt 0:01:30]} 16. Be2 {[%emt 0:04:30]} Nb4 {[%emt 0:04:30]} 17. Ng5 {[%emt 0:26:06]} Bh6 {[%emt 0:08:30]} 18. O-O-O {[%emt 0:00:18]} Nxa2+ {[%emt 0:01:30]} 19. Kb1 {[%emt 0:01:05]} Nxc3+ {[%emt 0:01:30]} 20. Qxc3 {[%emt 0:01:41]} Bg4 {[%emt 0:04:30]} 21. Bxg4 {[%emt 0:01:59]} Bxg5 {[%emt 0:00:30]} 22. Bf5 {[%emt 0:00:52]} Bxe3 {[%emt 0:00:30]} 23. Qxe3 {[%emt 0:00:03]} Rg8 {[%emt 0:01:30]} 24. Qf3 {[%emt 0:00:34]} Qh6 {[%emt 0:03:30]} 25. Rxg8+ {[%emt 0:00:44]} Rxg8 {[%emt 0:00:30]} 26. Rh1 {[%emt 0:00:04]} Rg5 {[%emt 0:05:30]} 27. Qc3 {[%emt 0:03:05]} Qg7 {[%emt 0:00:30]} 28. Ka2 {[%emt 0:03:48]} b6 {[%emt 0:00:30]} 29. Qf3 {[%emt 0:02:37]} Qf7 {[%emt 0:02:30]} 30. Qc3 {[%emt 0:00:14]} Kg8 {[%emt 0:01:30]} 31. Qe3 {[%emt 0:00:09]} h6 {[%emt 0:00:30]} 32. Rh3 {[%emt 0:00:02]} Qe8 {[%emt 0:04:30]} 33. Rg3 {[%emt 0:00:41]} Qe7 {[%emt 0:00:30]} 34. Rh3 {[%emt 0:00:11]} Kh8 {[%emt 0:01:30]} 35. Qf3 {[%emt 0:00:54]} Qe8 {[%emt 0:00:30]} 36. b3 {[%emt 0:05:18]} Qf7 {[%emt 0:07:30]} 37. Ka3 {[%emt 0:00:23]} Kg7 {[%emt 0:00:30]} 38. Qh1 {[%emt 0:00:05]} Qe8 {[%emt 0:00:30]} 39. Rf3 {[%emt 0:01:38]} b5 {[%emt 0:00:30]} 40. Qh3 {[%emt 0:00:19]} bxc4 {[%emt 0:01:30]} 41. Be6 {[%emt 0:00:05]} Qb8 {[%emt 0:01:30]} 42. Kb2 {[%emt 0:02:47]} Nxb3 {[%emt 0:03:30]} 43. Bc8 {[%emt 0:01:59]} Nd2+ {[%emt 0:02:30]} 44. Kc2 {[%emt 0:00:23]} Qb1+ {[%emt 0:00:00]} 45. Kxd2 {[%emt 0:00:00]} Qb2+ {[%emt 0:00:00]} 46. Ke3 {[%emt 0:00:15]} Qc3+ {[%emt 0:00:30]} 47. Ke2 {[%emt 0:00:05]} Qc2+ {[%emt 0:00:00]} 48. Ke3 {[%emt 0:00:04]} Qd3# 0-1

[Event "17th Spilimbergo Open 2019"]
[Site "Spilimbergo"]
[Date "2019.08.11"]
[Round "4.5"]
[White "Petrov, Martin"]
[Black "Basso, Pier Luigi"]
[Result "1/2-1/2"]
[WhiteElo "2477"]
[BlackElo "2576"]
[PlyCount "24"]
[EventDate "2019.08.09"]
[EventType "swiss"]
[EventCountry "ITA"]
[TimeControl "5400+30"]
[WhiteClock "1:30:00"]
[BlackClock "1:08:00"]

1. e4 {[%emt 0:00:30]} c5 {[%emt 0:00:30]} 2. Nf3 {[%emt 0:00:00]} e6 {[%emt 0:00:30]} 3. d4 {[%emt 0:00:00]} cxd4 {[%emt 0:00:30]} 4. Nxd4 {[%emt 0:00:30]} Nf6 {[%emt 0:00:30]} 5. Nc3 {[%emt 0:02:30]} Nc6 {[%emt 0:01:30]} 6. Ndb5 {[%emt 0:00:30]} Bc5 {[%emt 0:00:30]} 7. Bf4 {[%emt 0:03:30]} O-O {[%emt 0:00:00]} 8. Bc7 {[%emt 0:00:30]} Qe7 {[%emt 0:00:00]} 9. Bd6 {[%emt 0:00:30]} Bxd6 {[%emt 0:00:30]} 10. Qxd6 {[%emt 0:00:30]} Qd8 {[%emt 0:00:00]} 11. Qc7 {[%emt 0:17:30]} d5 {[%emt 0:01:00]} 12. exd5 {[%emt 0:01:30]} exd5 1/2-1/2

[Event "17th Spilimbergo Open 2019"]
[Site "Spilimbergo"]
[Date "2019.08.11"]
[Round "4.6"]
[White "Ankit, R. Rajpara"]
[Black "Brunello, Sabino"]
[Result "1/2-1/2"]
[WhiteElo "2454"]
[BlackElo "2556"]
[PlyCount "51"]
[EventDate "2019.08.09"]
[EventType "swiss"]
[EventCountry "ITA"]
[TimeControl "5400+30"]
[WhiteClock "0:01:57"]
[BlackClock "0:13:44"]

1. d4 {[%emt 0:00:30]} Nf6 {[%emt 0:00:30]} 2. c4 {[%emt 0:00:00]} e6 {[%emt 0:00:30]} 3. g3 {[%emt 0:00:00]} d5 {[%emt 0:00:00]} 4. Nf3 {[%emt 0:00:30]} Be7 {[%emt 0:00:00]} 5. Bg2 {[%emt 0:00:00]} O-O {[%emt 0:00:00]} 6. O-O {[%emt 0:00:00]} dxc4 {[%emt 0:01:00]} 7. Qa4 {[%emt 0:00:30]} c6 {[%emt 0:01:30]} 8. Qxc4 {[%emt 0:01:30]} b5 {[%emt 0:00:00]} 9. Qc2 {[%emt 0:02:30]} Bb7 {[%emt 0:00:00]} 10. Bg5 {[%emt 0:10:30]} Nbd7 {[%emt 0:05:30]} 11. Bxf6 {[%emt 0:00:30]} Nxf6 {[%emt 0:47:30]} 12. Nbd2 {[%emt 0:02:30]} Rc8 {[%emt 0:05:30]} 13. Nb3 {[%emt 0:00:30]} c5 {[%emt 0:03:30]} 14. dxc5 {[%emt 0:05:30]} Bd5 {[%emt 0:26:03]} 15. Rfd1 {[%emt 0:21:30]} a5 {[%emt 0:00:06]} 16. a4 {[%emt 0:13:30]} bxa4 {[%emt 0:01:06]} 17. Rxa4 {[%emt 0:00:30]} Qb6 {[%emt 0:03:35]} 18. cxb6 {[%emt 0:16:30]} Rxc2 {[%emt 0:00:02]} 19. Nxa5 {[%emt 0:04:35]} Rxb2 {[%emt 0:01:15]} 20. Nc4 {[%emt 0:01:24]} Bxc4 {[%emt 0:00:30]} 21. Rxc4 {[%emt 0:00:04]} Rxb6 {[%emt 0:00:09]} 22. Ne5 {[%emt 0:00:38]} Rd6 {[%emt 0:00:34]} 23. Rb1 {[%emt 0:01:39]} Nd7 {[%emt 0:00:20]} 24. Nd3 {[%emt 0:02:47]} Bf6 {[%emt 0:00:29]} 25. Rb5 {[%emt 0:00:39]} Rb6 {[%emt 0:00:54]} 26. Rxb6 1/2-1/2

[Event "17th Spilimbergo Open 2019"]
[Site "Spilimbergo"]
[Date "2019.08.11"]
[Round "4.7"]
[White "Skembris, Spyridon"]
[Black "Vetoshko, Volodymyr"]
[Result "1/2-1/2"]
[WhiteElo "2413"]
[BlackElo "2495"]
[PlyCount "33"]
[EventDate "2019.08.09"]
[EventType "swiss"]
[EventCountry "ITA"]
[TimeControl "5400+30"]
[WhiteClock "1:12:00"]
[BlackClock "1:07:00"]

1. c4 {[%emt 0:00:30]} Nf6 {[%emt 0:00:30]} 2. Nf3 {[%emt 0:00:30]} e6 {[%emt 0:00:00]} 3. g3 {[%emt 0:00:00]} d5 {[%emt 0:00:00]} 4. Bg2 {[%emt 0:00:00]} dxc4 {[%emt 0:00:30]} 5. Qa4+ {[%emt 0:00:30]} c6 {[%emt 0:00:00]} 6. Qxc4 {[%emt 0:00:00]} b5 {[%emt 0:00:00]} 7. Qc2 {[%emt 0:01:00]} Bb7 {[%emt 0:00:00]} 8. b3 {[%emt 0:05:30]} Nbd7 {[%emt 0:02:00]} 9. Bb2 {[%emt 0:00:30]} Be7 {[%emt 0:00:30]} 10. Nc3 {[%emt 0:00:30]} a6 {[%emt 0:03:30]} 11. a4 {[%emt 0:06:30]} Qb6 {[%emt 0:03:30]} 12. O-O {[%emt 0:02:30]} O-O {[%emt 0:02:30]} 13. Ne4 {[%emt 0:04:30]} Nxe4 {[%emt 0:09:30]} 14. Qxe4 {[%emt 0:00:30]} c5 {[%emt 0:01:30]} 15. Qc2 {[%emt 0:00:30]} Bf6 {[%emt 0:01:30]} 16. Bxf6 {[%emt 0:07:30]} Nxf6 {[%emt 0:00:30]} 17. Rfc1 1/2-1/2